bitfinex-derivatives/quotes_SOLF0:USTF0_20251026
["timestamp","ask_amount","ask_price","bid_price","bid_amount"]
[1761462871079,8.27504747,194.2,194.19,29.10785713]
[1761462877202,3.88688383,194.2,194.19,29.10785713]
[1761462879502,8.27439103,194.2,194.19,29.10785713]
[1761462879701,3.85785678,194.2,194.19,29.08785713]
[1761462879901,8.24536398,194.2,194.19,29.08785713]
[1761462882201,3.85785678,194.2,194.19,29.08785713]
[1761462882402,8.24536398,194.2,194.19,29.08785713]
[1761462882602,3.85785678,194.2,194.19,29.08785713]
[1761462882802,8.24536398,194.2,194.19,29.08785713]
[1761462883001,3.85785678,194.2,194.19,29.08785713]
[1761462883204,8.24536398,194.2,194.19,29.08785713]
[1761462884101,3.85785678,194.2,194.19,29.08785713]
[1761462902021,3.85785678,194.2,194.19,26.48785713]
[1761462908929,8.26432258,194.2,194.19,26.48785713]
[1761462909330,13.08610008,194.2,194.19,26.48785713]
[1761462916830,13.08610008,194.2,194.19,29.34785713]
[1761462920736,8.26432258,194.2,194.19,29.34785713]
[1761462921839,8.26432258,194.2,194.19,26.48785713]
[1761462922335,8.26432258,194.2,194.19,29.34785713]
[1761462924740,13.08610008,194.2,194.19,29.34785713]
[1761462924933,8.26432258,194.2,194.19,29.34785713]
[1761462928137,3.85785678,194.2,194.19,29.34785713]
[1761462940447,8.26197246,194.2,194.19,29.34785713]
[1761462947154,13.08374996,194.2,194.19,29.34785713]
[1761462948357,13.08374996,194.2,194.19,26.48785713]
[1761462948555,13.08374996,194.2,194.19,29.16785713]
[1761462960677,8.26197246,194.2,194.19,29.16785713]
[1761462988903,5.38197246,194.2,194.19,29.16785713]
[1761462990306,0.97785678,194.2,194.19,29.16785713]
[1761463007109,5.38197246,194.2,194.19,29.16785713]
[1761463010015,11.87644492,194.2,194.19,29.16785713]
[1761463011020,10.20644492,194.2,194.19,29.16785713]
[1761463014822,5.38197246,194.2,194.19,29.16785713]
[1761463030049,0.97785678,194.2,194.19,29.16785713]
[1761463037657,4.35874834,194.25,194.19,29.16785713]
[1761463037658,4.35874834,194.24,194.2,2.8]
[1761463037849,4.82447246,194.25,194.2,2.8]
[1761463038054,9.1832208,194.25,194.2,2.8]
[1761463038255,4.35874834,194.24,194.2,2.8]
[1761463038455,4.82447246,194.25,194.2,2.8]
[1761463038958,9.1832208,194.25,194.2,2.8]
[1761463039158,4.35874834,194.24,194.2,2.8]
[1761463039960,4.82447246,194.25,194.2,2.8]
[1761463040160,9.1832208,194.26,194.2,2.8]
[1761463040360,4.35874834,194.25,194.2,2.8]
[1761463040552,4.82447246,194.26,194.2,2.8]
[1761463040859,9.1832208,194.26,194.2,2.8]
[1761463041063,4.35874834,194.25,194.2,2.8]
[1761463041257,4.82447246,194.26,194.2,2.8]
[1761463041460,9.1832208,194.26,194.2,2.8]
[1761463041663,4.35874834,194.25,194.2,2.8]
[1761463041856,4.82447246,194.26,194.2,2.8]
[1761463042053,9.1832208,194.26,194.2,2.8]
[1761463046261,4.35874834,194.26,194.2,2.8]
[1761463049470,3.8130804,194.25,194.2,2.8]
[1761463049669,3.8130804,194.24,194.2,64.74]
[1761463049871,3.8130804,194.23,194.21,2.8]
[1761463050072,2.65,194.25,194.21,2.8]
[1761463050266,3.81318763,194.24,194.21,2.8]
[1761463050477,3.81318763,194.23,194.21,2.8]
[1761463050679,2.65,194.24,194.21,2.8]
[1761463050972,3.81282075,194.23,194.21,2.8]
[1761463051170,2.65,194.24,194.21,2.8]
[1761463051375,3.81259117,194.23,194.21,2.8]
[1761463051573,2.65,194.24,194.21,2.8]
[1761463051775,3.81249631,194.23,194.21,2.8]
[1761463051968,2.65,194.24,194.21,2.8]
[1761463052169,3.81254992,194.23,194.21,2.8]
[1761463052370,2.65,194.24,194.21,2.8]
[1761463052667,3.81229501,194.23,194.21,2.8]
[1761463052860,2.65,194.24,194.21,2.8]
[1761463053065,3.81229501,194.23,194.21,2.8]
[1761463053367,7.00874834,194.26,194.21,2.8]
[1761463053666,3.81208177,194.25,194.21,2.8]
[1761463053867,3.81208177,194.24,194.21,2.8]
[1761463054068,3.81208177,194.23,194.21,2.8]
[1761463054266,2.65,194.26,194.21,2.8]
[1761463054467,3.81176844,194.25,194.21,2.8]
[1761463054667,3.81176844,194.24,194.21,2.8]
[1761463054973,3.81176844,194.23,194.21,2.8]
[1761463055178,2.65,194.26,194.21,2.8]
[1761463055362,3.8116037,194.25,194.21,2.8]
[1761463055566,3.8116037,194.24,194.21,2.8]
[1761463055866,3.8116037,194.23,194.21,2.8]
[1761463056067,6.99924789,194.26,194.21,2.8]
[1761463056264,3.81180313,194.25,194.21,2.8]
[1761463056470,3.81180313,194.24,194.21,2.8]
[1761463056771,3.81180313,194.23,194.21,2.8]
[1761463056970,6.99924789,194.26,194.21,2.8]
[1761463057173,3.81183587,194.25,194.21,2.8]
[1761463057476,3.81183587,194.24,194.21,2.8]
[1761463057675,3.81183587,194.23,194.21,2.8]
[1761463057877,6.99924789,194.26,194.21,2.8]
[1761463058074,3.8119158,194.25,194.21,2.8]
[1761463058378,3.81640664,194.24,194.21,2.8]
[1761463058573,3.81640664,194.23,194.21,2.8]
[1761463058776,6.99924789,194.26,194.21,2.8]
[1761463058976,3.81640664,194.25,194.21,2.8]
[1761463059175,3.81640664,194.24,194.21,2.8]
[1761463059381,3.81640664,194.23,194.21,2.8]
[1761463059676,6.99924789,194.26,194.21,2.8]
[1761463059877,3.81658415,194.25,194.21,2.8]
[1761463060077,3.81658415,194.24,194.21,2.8]
[1761463060278,3.81658415,194.23,194.21,2.8]
[1761463060477,6.99924789,194.26,194.21,2.8]
[1761463060674,3.81669612,194.25,194.21,2.8]
[1761463060880,3.81669612,194.24,194.21,2.8]
[1761463061082,3.81669612,194.23,194.21,2.8]
[1761463061276,6.99924789,194.26,194.21,2.8]
[1761463061478,3.81685052,194.25,194.21,2.8]
[1761463061677,3.81685052,194.24,194.21,2.8]
[1761463061878,3.81685052,194.23,194.21,2.8]
[1761463062078,3.81685052,194.22,194.21,2.8]
[1761463080999,3.81685052,194.22,194.21,64.72]
[1761463083797,4.80919464,194.28,194.22,2.78]
[1761463083997,8.1981179,194.27,194.22,2.78]
[1761463084296,3.82743497,194.26,194.22,2.78]
[1761463084501,3.82743497,194.25,194.22,2.78]
[1761463084698,3.82743497,194.24,194.22,2.78]
[1761463084901,3.82743497,194.23,194.22,2.78]
[1761463085401,7.0192014,194.27,194.22,2.78]
[1761463085602,3.82528441,194.26,194.22,2.78]
[1761463085901,3.82528441,194.25,194.22,2.78]
[1761463086101,3.82528441,194.24,194.22,2.78]
[1761463086300,7.0192014,194.27,194.22,2.78]
[1761463086509,3.82460335,194.26,194.22,2.78]
[1761463086799,3.82460335,194.25,194.22,2.78]
[1761463086999,3.82460335,194.24,194.22,2.78]
[1761463087192,7.0192014,194.27,194.22,2.78]
[1761463087390,3.82404243,194.26,194.22,2.78]
[1761463087590,3.82404243,194.25,194.22,2.78]
[1761463087790,3.82404243,194.24,194.22,2.78]
[1761463087994,7.0192014,194.27,194.22,2.78]
[1761463088200,3.82404368,194.26,194.22,2.78]
[1761463088398,3.82404368,194.25,194.22,2.78]
[1761463088601,3.82404368,194.24,194.22,2.78]
[1761463088801,2.65,194.27,194.22,2.78]
[1761463089102,3.81645133,194.26,194.22,2.78]
[1761463089402,3.81645133,194.25,194.22,2.78]
[1761463089592,3.81645133,194.24,194.22,2.78]
[1761463089793,2.65,194.27,194.22,2.78]
[1761463089994,3.81605106,194.26,194.22,2.78]
[1761463090194,3.81605106,194.25,194.22,2.78]
[1761463090402,2.65,194.27,194.22,2.78]
[1761463090704,3.81546323,194.26,194.22,2.78]
[1761463090903,3.81546323,194.25,194.22,2.78]
[1761463091104,2.65,194.27,194.22,2.78]
[1761463091405,3.81540723,194.26,194.22,2.78]
[1761463091598,3.81540723,194.25,194.22,2.78]
[1761463091801,2.65,194.27,194.22,2.78]
[1761463091998,3.81494122,194.26,194.22,2.78]
[1761463092305,4.35699385,194.29,194.22,2.78]
[1761463092506,3.81423801,194.28,194.22,2.78]
[1761463092702,3.81423801,194.27,194.22,2.78]
[1761463092903,3.81423801,194.26,194.22,2.78]
[1761463093103,4.35699385,194.29,194.22,2.78]
[1761463093305,3.81410409,194.28,194.22,2.78]
[1761463093504,3.81410409,194.27,194.22,2.78]
[1761463093697,2.59,194.29,194.22,2.78]
[1761463093898,3.81331605,194.28,194.22,2.78]
[1761463094098,2.59,194.29,194.22,2.78]
[1761463094099,3.81331605,194.27,194.23,1.49292667]
[1761463094298,2.59,194.29,194.23,1.49292667]
[1761463094299,2.59,194.29,194.25,2.76]
[1761463094505,6.40226444,194.28,194.25,2.76]
[1761463094801,3.81226444,194.27,194.25,2.76]
[1761463095008,2.59,194.28,194.25,2.76]
[1761463095200,3.81226514,194.27,194.25,2.76]
[1761463095505,2.59,194.28,194.25,2.76]
[1761463096702,3.81078592,194.27,194.25,2.76]
[1761463096908,2.59,194.27,194.25,2.76]
[1761463097506,2.59,194.27,194.24,64.68]
[1761463098397,2.59,194.27,194.24,67.14]
[1761463098812,2.59,194.27,194.25,2.76]
[1761463107118,4.35029697,194.31,194.25,2.76]
[1761463107308,2.59,194.29,194.25,2.76]
[1761463107510,3.80906492,194.28,194.25,2.76]
[1761463107815,3.80906492,194.27,194.25,2.76]
[1761463108115,2.59,194.29,194.25,2.76]
[1761463108315,6.3991241,194.28,194.25,2.76]
[1761463108518,3.8091241,194.27,194.25,2.76]
[1761463108816,2.59,194.28,194.25,2.76]
[1761463109013,3.80913374,194.27,194.25,2.76]
[1761463109214,2.59,194.28,194.25,2.76]
[1761463109514,2.59,194.31,194.25,2.76]
[1761463109713,2.59,194.29,194.25,2.76]
[1761463109911,3.80918936,194.28,194.25,2.76]
[1761463110211,2.59,194.29,194.25,2.76]
[1761463110411,3.80925232,194.28,194.25,2.76]
[1761463110615,2.59,194.29,194.25,2.76]
[1761463110815,3.80925301,194.28,194.25,2.76]
[1761463111014,2.59,194.29,194.25,2.76]
[1761463111216,3.80925301,194.28,194.25,2.76]
[1761463111417,2.59,194.29,194.25,2.76]
[1761463111613,3.80935806,194.28,194.25,2.76]
[1761463111819,2.59,194.28,194.25,2.76]
[1761463113316,3.80969937,194.27,194.25,2.76]
[1761463113516,2.59,194.28,194.25,2.76]
[1761463113718,3.80970031,194.27,194.25,2.76]
[1761463113913,2.59,194.28,194.25,2.76]
[1761463114118,3.80970031,194.27,194.25,2.76]
[1761463114318,2.59,194.28,194.25,2.76]
[1761463114520,3.81005262,194.27,194.25,2.76]
[1761463114716,2.59,194.28,194.25,2.76]
[1761463114926,3.81005262,194.27,194.25,2.76]
[1761463115118,2.59,194.28,194.25,2.76]
[1761463115320,3.81032077,194.27,194.25,2.76]
[1761463115623,2.59,194.28,194.25,64.66]
[1761463115812,3.8104,194.27,194.25,2.76]
[1761463116018,4.35036174,194.3,194.24,2.46]
[1761463116019,2.59,194.25,194.24,2.46]
[1761463116222,6.40098228,194.25,194.24,2.46]
[1761463119321,10.75504809,194.25,194.24,2.46]
[1761463123822,10.77115241,194.25,194.24,2.46]
[1761463132738,6.40098228,194.25,194.24,2.46]
[1761463138141,6.40098228,194.25,194.24,2.24649206]
[1761463138447,16.6088751,194.25,194.24,2.24649206]
[1761463139243,15.5888751,194.25,194.24,2.24649206]
[1761463142347,77.5088751,194.25,194.24,2.24649206]
[1761463144051,79.84037683,194.25,194.24,2.24649206]
[1761463144950,80.86037683,194.25,194.24,2.24649206]
[1761463145343,78.27037683,194.25,194.23,7.1]
[1761463145549,10.83115241,194.24,194.23,7.1]
[1761463145745,11.85115241,194.24,194.23,7.1]
[1761463148249,16.6688751,194.24,194.23,7.1]
[1761463149151,11.85115241,194.24,194.23,7.1]
[1761463149351,16.6688751,194.24,194.23,7.1]
[1761463149649,8.04017013,194.24,194.23,7.1]
[1761463149849,16.66492001,194.24,194.23,7.1]
[1761463153455,16.64824457,194.24,194.23,7.1]
[1761463156255,15.62824457,194.24,194.23,7.1]
[1761463156455,77.54824457,194.24,194.23,9.72]
[1761463158863,12.97824457,194.24,194.23,9.72]
[1761463159159,3.81924551,194.24,194.23,9.72]
[1761463165868,4.3614753,194.26,194.24,2.62]
[1761463166077,3.82717392,194.25,194.24,2.62]
[1761463186779,3.82717392,194.25,194.23,7.1]
[1761463187078,2.6,194.23,194.2,2.69]
[1761463187381,1.49306302,194.21,194.2,2.48708736]
[1761463187578,1.49306302,194.21,194.19,28.73785713]
[1761463187785,6.42025633,194.2,194.19,28.73785713]
[1761463187971,3.82025633,194.2,194.19,28.73785713]
[1761463189283,3.82025633,194.2,194.19,31.42785713]
[1761463191976,6.42025633,194.2,194.19,28.73785713]
[1761463198592,6.42025633,194.2,194.19,31.42785713]
[1761463198793,3.82025633,194.2,194.19,31.42785713]
[1761463200293,6.42025633,194.2,194.19,31.42785713]
[1761463200593,6.42025633,194.2,194.19,28.73785713]
[1761463202994,3.82025633,194.2,194.19,31.48785713]
[1761463211897,6.51025633,194.2,194.19,28.73785713]
[1761463213903,11.32573776,194.2,194.19,28.73785713]
[1761463214998,6.51025633,194.2,194.19,28.73785713]
[1761463215201,10.82209764,194.2,194.19,28.73785713]
[1761463216105,15.63118681,194.2,194.19,28.73785713]
[1761463216306,11.3193455,194.2,194.19,28.73785713]
[1761463216710,15.63045936,194.2,194.19,28.73785713]
[1761463217006,11.3193455,194.2,194.19,28.73785713]
[1761463217608,15.63068411,194.2,194.19,28.73785713]
[1761463217808,11.3193455,194.2,194.19,28.73785713]
[1761463219908,11.3193455,194.2,194.19,26.48785713]
[1761463223713,15.63149756,194.2,194.19,26.48785713]
[1761463225415,10.82240839,194.2,194.19,26.48785713]
[1761463225613,15.63342462,194.2,194.19,26.48785713]
[1761463225818,10.82240839,194.2,194.19,26.48785713]
[1761463226117,72.76240839,194.2,194.19,26.48785713]
[1761463227615,10.82240839,194.2,194.19,26.48785713]
[1761463227820,72.76240839,194.2,194.19,26.48785713]
[1761463229321,79.19345858,194.2,194.19,26.48785713]
[1761463231222,72.76240839,194.2,194.19,26.48785713]
[1761463232623,72.76969866,194.2,194.19,26.48785713]
[1761463243431,72.76969866,194.2,194.17,2.25]
[1761463243732,14.56422586,194.19,194.17,4.92]
[1761463243936,8.13969866,194.18,194.17,4.92]
[1761463247139,10.81969866,194.18,194.17,2.25]
[1761463247939,10.81969866,194.18,194.17,4.92]
[1761463250144,8.13969866,194.18,194.17,4.92]
[1761463252342,8.28919036,194.18,194.17,4.92]
[1761463253247,14.71371756,194.18,194.17,4.92]
[1761463254750,8.28919036,194.18,194.17,4.92]
[1761463257644,10.62393523,194.18,194.17,4.92]
[1761463259250,6.3044929,194.18,194.17,4.92]
[1761463263260,10.62393523,194.18,194.17,4.92]
[1761463263659,10.62393523,194.18,194.17,2.67]
[1761463268664,6.3044929,194.18,194.17,2.67]
[1761463268963,10.62393523,194.18,194.17,2.67]
[1761463269160,6.3044929,194.18,194.17,2.67]
[1761463269464,10.62393523,194.18,194.17,2.67]
[1761463269652,6.3044929,194.18,194.17,2.67]
[1761463269856,10.62393523,194.18,194.17,2.67]
[1761463270054,6.3044929,194.18,194.17,2.67]
[1761463270259,10.62393523,194.18,194.17,2.67]
[1761463270461,6.3044929,194.18,194.17,2.67]
[1761463270659,10.62393523,194.18,194.17,2.67]
[1761463271461,6.3044929,194.18,194.17,2.67]
[1761463271662,10.62393523,194.18,194.17,2.67]
[1761463271866,6.3044929,194.18,194.17,2.67]
[1761463272067,11.12765394,194.18,194.17,2.67]
[1761463272365,15.44709627,194.18,194.17,2.67]
[1761463276169,11.12765394,194.18,194.17,2.67]
[1761463280368,8.79290907,194.18,194.17,2.67]
[1761463280868,13.11358247,194.18,194.17,2.67]
[1761463282469,15.77358247,194.18,194.17,2.67]
[1761463283672,13.11358247,194.18,194.16,2.25]
[1761463283875,13.2851663,194.17,194.16,2.25]
[1761463285572,75.2251663,194.17,194.16,2.25]
[1761463288969,2.66,194.16,194.05,0.89635277]
[1761463289171,11.45115371,194.15,194.05,0.89635277]
[1761463289474,11.12589858,194.14,194.05,0.89635277]
[1761463289671,8.79115371,194.13,194.03,20.0978]
[1761463289878,6.62974803,194.12,194.03,20.0978]
[1761463290177,3.96974803,194.11,194.03,20.0978]
[1761463290372,3.96974803,194.1,194.03,4.6378]
[1761463290671,2.66,194.12,194.03,4.6378]
[1761463290672,3.96974803,194.09,194.03,4.6378]
[1761463290877,2.66,194.12,194.03,4.6378]
[1761463291175,3.95528391,194.11,194.04,2.86]
[1761463291374,3.95528391,194.1,194.04,2.86]
[1761463291579,3.95528391,194.09,194.04,2.86]
[1761463291764,2.66,194.12,194.04,2.86]
[1761463291970,3.95443414,194.11,194.04,2.86]
[1761463292167,2.66,194.12,194.04,2.86]
[1761463292168,3.95443414,194.1,194.04,2.86]
[1761463292366,3.95443414,194.09,194.04,2.86]
[1761463292578,2.66,194.12,194.04,2.86]
[1761463292777,3.95368601,194.11,194.04,2.86]
[1761463293075,3.95368601,194.1,194.04,2.86]
[1761463293275,3.95368601,194.09,194.04,2.86]
[1761463293476,2.66,194.12,194.04,2.86]
[1761463293778,3.95301408,194.11,194.04,2.86]
[1761463293971,6.61301408,194.1,194.04,2.86]
[1761463294174,6.61301408,194.09,194.04,2.86]
[1761463294368,3.95301408,194.08,194.04,2.86]
[1761463294572,2.33474487,194.11,194.04,2.86]
[1761463294781,1.49556075,194.08,194.04,2.86]
[1761463296172,2.66,194.08,194.04,2.86]
[1761463296374,1.49556075,194.06,194.04,2.86]
[1761463296570,1.49556075,194.09,194.04,2.86]
[1761463296774,3.95092451,194.08,194.04,2.86]
[1761463297079,1.49556075,194.12,194.05,2.86]
[1761463297282,3.94979984,194.11,194.05,2.86]
[1761463297478,3.94979984,194.1,194.05,2.86]
[1761463297675,3.94979984,194.09,194.05,2.86]
[1761463297875,3.94979984,194.08,194.05,2.86]
[1761463298082,1.49556075,194.12,194.05,2.86]
[1761463298283,3.94902371,194.11,194.05,2.86]
[1761463298478,3.94902371,194.1,194.05,2.86]
[1761463298678,3.94902371,194.09,194.05,2.86]
[1761463298981,3.94902371,194.08,194.05,2.86]
[1761463299185,1.49556075,194.12,194.05,2.86]
[1761463299384,3.95379189,194.11,194.05,2.86]
[1761463299586,3.95379189,194.1,194.05,2.86]
[1761463299785,3.95379189,194.09,194.05,2.86]
[1761463300088,1.49556075,194.12,194.05,2.86]
[1761463300285,3.95315731,194.11,194.05,2.86]
[1761463300586,3.95315731,194.1,194.05,2.86]
[1761463300794,3.95315731,194.09,194.05,2.86]
[1761463300988,1.49556075,194.12,194.05,2.86]
[1761463301292,3.95315731,194.11,194.05,2.86]
[1761463301489,3.95315731,194.1,194.05,2.86]
[1761463301690,3.95315731,194.09,194.05,2.86]
[1761463301990,1.49556075,194.12,194.05,2.86]
[1761463302184,3.95208829,194.11,194.05,2.86]
[1761463302383,3.95208829,194.1,194.05,2.86]
[1761463302588,3.95208829,194.09,194.05,2.86]
[1761463302887,1.49556075,194.12,194.05,2.86]
[1761463303088,3.9520498,194.11,194.05,2.86]
[1761463303288,3.9520498,194.1,194.05,2.86]
[1761463303485,1.49556075,194.12,194.05,2.86]
[1761463303791,3.95162342,194.11,194.05,2.86]
[1761463303995,6.31696643,194.15,194.05,2.86]
[1761463304185,3.95138847,194.14,194.06,1.49556075]
[1761463304493,6.31696643,194.15,194.06,1.49556075]
[1761463304494,3.95138847,194.13,194.07,2.78]
[1761463304696,3.95138847,194.12,194.07,2.78]
[1761463304897,3.95138847,194.11,194.07,2.78]
[1761463305098,1.49556075,194.15,194.07,2.78]
[1761463305287,3.95131628,194.14,194.07,2.78]
[1761463305593,3.95131628,194.13,194.07,2.78]
[1761463305895,3.95131628,194.12,194.07,2.78]
[1761463306191,1.49556075,194.15,194.07,2.78]
[1761463306391,3.95115285,194.14,194.07,2.78]
[1761463306595,3.95115285,194.13,194.07,2.78]
[1761463306782,3.95115285,194.12,194.07,2.78]
[1761463306983,1.49556075,194.15,194.07,2.78]
[1761463307187,3.95115229,194.14,194.07,2.78]
[1761463307486,3.95115229,194.13,194.07,2.78]
[1761463307689,3.95115229,194.12,194.07,2.78]
[1761463307890,1.49556075,194.15,194.07,2.78]
[1761463308186,3.95121533,194.14,194.07,2.78]
[1761463308493,3.95121533,194.13,194.07,2.78]
[1761463308795,3.95121533,194.12,194.07,2.78]
[1761463308991,3.95121533,194.11,194.07,2.78]
[1761463309190,4.34556075,194.15,194.09,2.78]
[1761463309390,6.80137878,194.14,194.09,2.78]
[1761463309594,3.95137878,194.13,194.09,2.78]
[1761463309794,3.95137878,194.12,194.09,2.78]
[1761463310092,2.85,194.14,194.09,2.78]
[1761463310294,3.95147905,194.13,194.09,2.78]
[1761463310493,3.95147905,194.12,194.09,2.78]
[1761463310698,2.85,194.14,194.09,2.78]
[1761463310898,3.95147975,194.13,194.09,2.78]
[1761463311098,3.95147975,194.12,194.09,2.78]
[1761463311299,2.85,194.14,194.09,2.78]
[1761463311492,3.95159281,194.13,194.09,2.78]
[1761463311694,3.95159281,194.12,194.09,2.78]
[1761463311894,2.85,194.12,194.09,2.78]
[1761463312395,3.95175692,194.11,194.09,2.78]
[1761463312594,2.85,194.12,194.09,2.78]
[1761463312795,3.95175678,194.11,194.09,2.78]
[1761463312989,2.85,194.12,194.09,2.78]
[1761463313188,3.95175678,194.11,194.09,2.78]
[1761463313400,2.85,194.12,194.09,2.78]
[1761463313601,3.95189016,194.11,194.09,2.78]
[1761463313801,2.85,194.12,194.09,2.78]
[1761463314001,3.95189016,194.11,194.09,2.78]
[1761463314301,2.85,194.12,194.09,2.78]
[1761463314602,3.95206125,194.11,194.09,2.78]
[1761463314803,2.85,194.12,194.09,2.78]
[1761463314997,3.95206125,194.11,194.09,2.78]
[1761463315198,2.85,194.12,194.09,2.78]
[1761463315398,3.95224979,194.11,194.09,2.78]
[1761463315601,2.85,194.12,194.09,2.78]
[1761463315804,3.95224979,194.11,194.09,2.78]
[1761463316002,2.85,194.12,194.09,2.78]
[1761463316201,3.95243194,194.11,194.09,2.78]
[1761463316402,2.85,194.12,194.09,2.78]
[1761463316602,3.95237832,194.11,194.09,2.78]
[1761463316904,2.85,194.14,194.09,2.78]
[1761463317106,6.80248557,194.13,194.09,2.78]
[1761463317302,3.95248557,194.12,194.09,2.78]
[1761463317602,3.95248557,194.11,194.09,2.78]
[1761463317802,2.85,194.13,194.09,2.78]
[1761463318003,3.95273707,194.12,194.09,2.78]
[1761463318204,3.95273707,194.11,194.09,2.78]
[1761463318405,2.85,194.13,194.09,2.78]
[1761463318606,6.80324557,194.12,194.09,2.78]
[1761463318802,3.95324557,194.11,194.09,2.78]
[1761463319013,2.85,194.12,194.09,2.78]
[1761463319210,3.95367468,194.11,194.09,2.78]
[1761463319410,2.85,194.12,194.09,2.78]
[1761463319610,3.95367499,194.11,194.09,2.78]
[1761463319806,2.85,194.12,194.09,2.78]
[1761463320001,3.95367496,194.11,194.09,2.78]
[1761463320202,2.85,194.12,194.09,2.78]
[1761463320416,6.80399246,194.11,194.09,2.78]
[1761463320711,2.85,194.11,194.09,2.78]
[1761463321010,2.67,194.14,194.09,2.78]
[1761463321215,2.67,194.12,194.09,2.78]
[1761463321512,3.95431904,194.11,194.09,2.78]
[1761463321712,2.67,194.12,194.09,2.78]
[1761463321913,3.95447365,194.11,194.09,2.78]
[1761463322110,2.67,194.12,194.09,2.78]
[1761463322311,3.9550442,194.11,194.09,2.78]
[1761463322507,2.67,194.12,194.09,2.78]
[1761463322812,3.9550449,194.11,194.09,2.78]
[1761463323012,2.67,194.12,194.09,2.78]
[1761463323313,3.95552967,194.11,194.09,2.78]
[1761463323511,2.67,194.12,194.09,2.78]
[1761463323712,3.95567313,194.11,194.09,2.78]
[1761463323914,2.67,194.12,194.09,2.78]
[1761463324114,3.95567313,194.11,194.09,2.78]
[1761463324314,3.95567313,194.1,194.09,2.78]
[1761463340432,6.81567313,194.1,194.09,2.78]
[1761463344730,3.95567313,194.1,194.09,2.78]
[1761463353639,2.86,194.12,194.09,2.78]
[1761463365652,3.95027748,194.11,194.09,2.78]
[1761463365950,3.95027748,194.1,194.09,2.78]
[1761463370962,2.82,194.16,194.09,2.78]
[1761463372056,2.82,194.16,194.12,2.86]
[1761463372258,2.82,194.16,194.12,64.8]
[1761463373464,2.82,194.16,194.13,2.86]
[1761463382876,6.59445976,194.15,194.13,2.86]
[1761463383066,3.92445976,194.14,194.13,2.86]
[1761463386273,2.67,194.18,194.13,2.86]
[1761463386473,6.59333413,194.17,194.13,2.86]
[1761463386676,3.92333413,194.16,194.13,2.86]
[1761463386871,3.92333413,194.15,194.13,2.86]
[1761463387072,2.67,194.17,194.13,2.86]
[1761463387273,3.92307434,194.16,194.13,2.86]
[1761463387474,3.92307434,194.15,194.13,2.86]
[1761463387778,2.67,194.17,194.13,2.86]
[1761463387978,3.92306948,194.16,194.13,2.86]
[1761463388280,3.92306948,194.15,194.13,2.86]
[1761463388474,2.67,194.17,194.13,2.86]
[1761463388669,3.92621404,194.16,194.13,2.86]
[1761463388872,3.92621404,194.15,194.13,2.86]
[1761463389081,2.67,194.17,194.13,2.86]
[1761463389282,3.92602044,194.16,194.13,2.86]
[1761463389578,3.92602044,194.15,194.13,2.86]
[1761463389779,2.67,194.17,194.13,2.86]
[1761463389975,3.92602113,194.16,194.13,2.86]
[1761463390175,3.92602113,194.15,194.13,2.86]
[1761463390476,2.67,194.17,194.13,2.86]
[1761463390670,3.92585976,194.16,194.13,2.86]
[1761463390869,3.92585976,194.15,194.13,2.86]
[1761463391073,2.67,194.17,194.13,2.86]
[1761463391274,3.92572933,194.16,194.13,2.86]
[1761463391474,3.92572933,194.15,194.13,2.86]
[1761463391775,2.67,194.17,194.13,2.86]
[1761463391974,3.92572933,194.16,194.13,2.86]